bitfinex-derivatives/quotes_ETHF0:USTF0_20250130
["timestamp","ask_amount","ask_price","bid_price","bid_amount"]
[1738200423569,0.63511,3149.2,3149.1,0.0034968]
[1738200424072,0.63508,3149.4,3149.1,0.0034968]
[1738200424273,0.6351,3149.3,3149.1,0.0034968]
[1738200424867,0.63511,3149.2,3149.1,0.0034968]
[1738200426972,3.84291,3149.2,3149.1,0.0034968]
[1738200428078,8.2078,3149.2,3148.3,3.2078]
[1738200428374,0.63527,3148.4,3148.3,3.2078]
[1738200429168,1.883,3148.6,3148.3,3.2078]
[1738200429575,0.63527,3148.4,3148.3,3.2078]
[1738200430679,1.14924,3148.6,3148.3,3.2078]
[1738200430880,0.63525,3148.5,3148.3,3.2078]
[1738200433277,0.63527,3148.4,3148.3,3.2078]
[1738200433476,0.63526,3148.5,3148.3,3.2078]
[1738200433688,0.6352,3148.8,3148.4,0.63526]
[1738200433980,0.63523,3148.6,3148.5,0.5087]
[1738200435376,1.369,3148.9,3148.5,0.5087]
[1738200435573,0.63522,3148.7,3148.5,0.5087]
[1738200436283,0.5049,3149.2,3148.5,0.5087]
[1738200436284,0.63519,3148.8,3148.5,0.5087]
[1738200436483,0.63518,3148.9,3148.5,1.14394]
[1738200437282,0.63516,3149.0,3148.6,0.63521]
[1738200437482,0.63516,3149.0,3148.5,0.5087]
[1738200437681,1.14002,3149.2,3148.8,0.63518]
[1738200437877,1.14002,3149.2,3148.9,0.63516]
[1738200438078,0.5049,3149.2,3148.9,0.63516]
[1738200438684,1.14001,3149.2,3148.9,0.63516]
[1738200438885,3.84412706,3149.5,3148.8,2.81424904]
[1738200439088,3.84412706,3149.5,3149.2,0.6351]
[1738200439283,3.84412706,3149.5,3149.3,0.5249]
[1738200440386,0.63507,3149.4,3149.3,0.5249]
[1738200440586,0.63514,3149.1,3148.7,3.843]
[1738200440778,0.63517,3148.9,3148.8,0.5249]
[1738200441086,3.31514904,3149.4,3148.3,3.84308]
[1738200441283,0.63525,3148.5,3148.4,0.5183]
[1738200441489,0.63523,3148.6,3148.4,0.5183]
[1738200441688,13.53525,3148.5,3148.4,0.5183]
[1738200442089,0.63525,3148.5,3148.4,0.5183]
[1738200443190,0.5201,3148.8,3148.0,0.00476387]
[1738200443392,0.5201,3148.8,3148.0,0.52306387]
[1738200443393,0.63533,3148.1,3148.0,0.52306387]
[1738200443594,3.7407,3148.7,3148.0,0.52306387]
[1738200443794,0.63526,3148.5,3148.1,0.63532]
[1738200444489,3.2078,3148.7,3148.0,0.52306387]
[1738200444695,0.63527,3148.5,3148.1,0.63533]
[1738200445418,0.63528,3148.4,3148.0,1.15840387]
[1738200445588,3.2078,3148.7,3148.1,0.63532]
[1738200445589,0.63526,3148.5,3148.1,0.63532]
[1738200445893,3.2078,3148.7,3148.1,0.63532]
[1738200446083,0.63527,3148.4,3148.1,0.63532]
[1738200446288,0.63527,3148.4,3148.0,1.15840387]
[1738200446598,0.63526,3148.5,3148.1,0.63532]
[1738200447196,3.2078,3148.7,3148.0,0.52306387]
[1738200447501,3.2078,3148.7,3148.4,0.63526]
[1738200447695,3.84301,3148.7,3148.4,0.63526]
[1738200448187,12.9,3149.1,3148.2,6.02204904]
[1738200448388,0.63517,3148.9,3148.6,0.63523]
[1738200448584,0.63517,3148.9,3148.7,0.5364]
[1738200449300,0.63519,3148.8,3148.7,0.5364]
[1738200449499,12.9,3149.1,3148.7,0.5364]
[1738200449696,0.00126706,3149.5,3149.0,3.2078]
[1738200449896,0.00126706,3149.5,3149.2,0.6351]
[1738200450101,0.63507,3149.4,3149.3,0.5364]
[1738200450712,0.63632706,3149.5,3149.3,0.5364]
[1738200450909,0.63507,3149.4,3149.3,0.5364]
[1738200451105,0.63631706,3149.5,3149.3,0.5364]
[1738200451412,0.00126706,3149.5,3149.4,6.65711904]
[1738200451615,0.00126706,3149.5,3149.4,3.34284904]
[1738200451910,0.00126706,3149.5,3149.4,7.18571904]
[1738200452114,0.00126706,3149.5,3149.4,0.5286]
[1738200452413,3.2078,3151.0,3149.7,2.81424904]
[1738200452606,0.63482,3150.7,3150.4,2.81424904]
[1738200452914,3.2078,3150.6,3149.8,6.56404904]
[1738200453214,3.2078,3150.6,3149.9,0.5513]
[1738200453508,0.63495,3150.0,3149.9,0.55606387]
[1738200453903,0.63495,3150.0,3149.9,0.00476387]
[1738200454104,0.63495,3150.0,3149.9,0.0026798]
[1738200454501,0.63503,3149.7,3149.5,2.81424904]
[1738200454730,0.63503,3149.6,3149.5,2.81424904]
[1738200454902,13.53503,3149.6,3149.3,0.5457]
[1738200455419,12.9,3149.6,3149.3,0.5457]
[1738200455604,0.63505,3149.5,3149.3,0.5457]
[1738200455911,12.9,3149.6,3149.4,3.84286]
[1738200456111,1.14626,3150.0,3149.5,2.81424904]
[1738200456616,13.4113,3150.0,3149.6,0.63502]
[1738200456813,1.8963,3150.3,3149.4,7.13882074]
[1738200456814,1.369,3150.6,3149.8,0.63497]
[1738200457008,0.6349,3150.3,3149.8,0.63497]
[1738200458406,12.9,3150.4,3149.8,3.2078]
[1738200458712,13.53488,3150.4,3149.9,1.16896]
[1738200458913,12.9,3150.4,3150.0,0.63494]
[1738200459113,13.53487,3150.4,3149.9,0.534]
[1738200459310,12.9,3150.4,3149.9,0.534]
[1738200459506,0.6349,3150.3,3149.9,0.534]
[1738200459909,0.00349681,3150.5,3149.9,1.16896]
[1738200460211,0.63835681,3150.5,3150.0,0.63494]
[1738200460406,0.63834681,3150.5,3150.0,0.63494]
[1738200460611,0.63487,3150.4,3150.0,0.63494]
[1738200461311,3.84271,3150.2,3149.9,0.534]
[1738200461713,3.2078,3150.2,3149.9,1.16895]
[1738200462625,3.2078,3150.2,3149.9,0.534]
[1738200462806,0.63487,3150.4,3150.0,0.63495]
[1738200463009,0.00349681,3150.5,3150.3,0.63488]
[1738200463214,0.00349681,3150.5,3150.1,0.5046]
[1738200463411,0.00349681,3150.5,3150.2,0.63489]
[1738200463707,0.00349681,3150.5,3150.2,3.2078]
[1738200463910,0.00349681,3150.5,3150.4,0.63487]
[1738200464424,0.00349681,3150.5,3150.2,3.7206]
[1738200464622,0.00349681,3150.5,3150.2,4.35549]
[1738200464922,0.00349681,3150.5,3150.2,7.12882074]
[1738200465414,0.00349681,3150.5,3150.3,0.63488]
[1738200466014,0.00349681,3150.5,3150.4,0.63487]
[1738200469211,0.00349681,3150.5,3150.3,0.63488]
[1738200470220,0.00349681,3150.5,3150.4,0.63487]
[1738200470423,0.00349681,3150.5,3150.2,6.61602074]
[1738200470617,0.00349681,3150.5,3150.3,0.63488]
[1738200474221,0.00349681,3150.5,3150.2,6.61602074]
[1738200474425,0.63489,3150.3,3150.2,3.2078]
[1738200475822,0.5112,3150.4,3150.2,3.2078]
[1738200476018,0.63489,3150.3,3150.2,3.2078]
[1738200477023,0.5112,3150.4,3150.2,3.2078]
[1738200477317,1.14607,3150.4,3150.2,3.2078]
[1738200477720,0.5112,3150.4,3150.2,3.2078]
[1738200478619,1.14607,3150.4,3150.2,3.2078]
[1738200478925,0.5112,3150.4,3150.2,3.84269]
[1738200479218,0.5112,3150.4,3150.2,3.2078]
[1738200479525,0.5112,3150.4,3150.2,3.84269]
[1738200479729,0.5112,3150.4,3150.2,3.2078]
[1738200479920,0.5112,3150.4,3150.2,3.84271]
[1738200480718,0.5112,3150.4,3150.2,3.2078]
[1738200481512,0.5112,3150.4,3150.2,3.8427]
[1738200481717,0.5112,3150.4,3150.3,0.63489]
[1738200484328,0.63495,3150.0,3149.9,0.534]
[1738200484626,0.63495,3150.0,3149.7,3.84281]
[1738200484822,0.63495,3150.0,3149.8,0.63499]
[1738200485222,0.5112,3150.4,3149.7,6.02001684]
[1738200485423,0.5112,3150.4,3149.8,0.5012]
[1738200485631,0.00349681,3150.5,3150.1,3.2078]
[1738200485823,0.00349681,3150.5,3150.4,0.63487]
[1738200486827,0.00349681,3150.5,3150.3,0.63488]
[1738200487034,3.2078,3151.4,3150.4,2.81221684]
[1738200487228,0.5351,3151.2,3150.8,0.63479]
[1738200487423,0.5351,3151.2,3151.0,0.63474]
[1738200487819,0.5351,3151.2,3151.1,0.63473]
[1738200488030,0.0008,3151.5,3151.1,3.2078]
[1738200488229,0.00556387,3151.5,3151.2,0.5356]
[1738200488430,0.00556387,3151.5,3151.3,0.63469]
[1738200488730,0.00556387,3151.5,3151.3,0.63468]
[1738200489139,0.00556387,3151.5,3151.2,0.5356]
[1738200489331,0.00556387,3151.5,3151.3,0.63468]
[1738200489523,0.00556387,3151.5,3151.2,1.1703]
[1738200489919,0.00476387,3151.5,3151.2,1.1703]
[1738200490726,0.00476387,3151.5,3151.2,0.5356]
[1738200490935,0.00476387,3151.5,3151.2,1.1703]
[1738200491135,0.00476387,3151.5,3151.2,0.5356]
[1738200491624,0.00476387,3151.5,3151.2,1.1703]
[1738200492327,0.63941387,3151.5,3151.2,1.1703]
[1738200494133,0.00476387,3151.5,3151.2,0.5356]
[1738200494329,0.63941387,3151.5,3151.2,1.1703]
[1738200494925,0.00476387,3151.5,3151.4,0.63467]
[1738200495336,0.00476387,3151.5,3151.3,3.44689684]
[1738200495929,0.63941387,3151.5,3151.3,2.81221684]
[1738200496227,0.00476387,3151.5,3151.3,2.81221684]
[1738200498034,0.00476387,3151.5,3151.3,3.44689684]
[1738200498232,0.00476387,3151.5,3151.3,2.81221684]
[1738200498632,0.00476387,3151.5,3151.3,3.44689684]
[1738200498830,0.00476387,3151.5,3151.1,3.2078]
[1738200498831,0.63469,3151.3,3151.1,3.2078]
[1738200499134,0.63476,3151.0,3150.8,0.53716387]
[1738200499329,0.63477,3150.9,3150.8,0.00476387]
[1738200500334,5.90877,3150.9,3150.8,0.00476387]
[1738200500540,0.63477,3150.9,3150.8,0.00476387]
[1738200501331,0.63487,3150.4,3150.3,3.2078]
[1738200502338,4.39916684,3150.9,3150.0,0.00476387]
[1738200502339,6.02001684,3150.6,3150.0,0.00476387]
[1738200502534,0.63493,3150.1,3150.0,0.00476387]
[1738200503842,2.00093,3150.1,3150.0,0.00476387]
[1738200504942,1.366,3150.1,3150.0,0.00476387]
[1738200505145,1.366,3150.2,3150.0,0.00476387]
[1738200505339,1.366,3150.2,3149.2,0.25439788]
[1738200505530,3.2078,3149.7,3148.6,2.81221684]
[1738200505736,0.63508,3149.4,3148.9,3.44737684]
[1738200506034,0.63508,3149.4,3149.0,0.532]
[1738200506343,0.63509,3149.3,3149.0,0.532]
[1738200507538,0.6351,3149.3,3149.0,0.532]
[1738200507751,0.00476387,3149.5,3149.3,0.63508]
[1738200507939,0.00476387,3149.5,3149.2,6.02001684]
[1738200508141,0.63515,3149.0,3148.9,0.00476387]
[1738200508734,0.63514,3149.1,3148.9,0.00476387]
[1738200508935,1.366,3149.3,3148.9,2.81698071]
[1738200509239,0.63511,3149.2,3148.9,2.81698071]
[1738200509741,0.00476387,3149.5,3149.0,0.63515]
[1738200509943,0.00476387,3149.5,3149.2,6.02001684]
[1738200510244,0.00476387,3149.5,3149.3,0.5203]
[1738200510245,0.63982387,3149.5,3149.3,0.5203]
[1738200510438,0.00476387,3149.5,3149.3,0.5203]
[1738200512239,0.00476387,3149.5,3149.4,0.5417]
[1738200512439,0.00476387,3149.5,3149.3,0.5203]
[1738200513647,0.00476387,3149.5,3149.3,1.15537]
[1738200513840,0.00476387,3149.5,3149.3,0.5203]
[1738200514346,0.00476387,3149.5,3149.3,1.15538]
[1738200514545,0.00476387,3149.5,3149.3,0.5203]
[1738200514734,0.00476387,3149.5,3149.4,0.63507]
[1738200516243,0.63982387,3149.5,3149.3,0.5203]
[1738200516448,0.63508,3149.4,3149.2,3.2078]
[1738200516646,1.13698,3149.4,3149.2,3.2078]
[1738200516835,0.5019,3149.4,3149.2,3.2078]
[1738200517141,13.53509,3149.3,3149.2,3.2078]
[1738200517343,0.63509,3149.3,3149.2,3.2078]
[1738200517939,13.4019,3149.4,3149.2,3.2078]
[1738200518146,0.00476387,3149.5,3149.3,0.63508]
[1738200518640,0.00476387,3149.5,3149.4,0.63507]
[1738200519753,0.00476387,3149.5,3149.4,0.63507]
[1738200520351,1.9999,3150.3,3149.8,0.63497]
[1738200520544,0.63491,3150.2,3149.9,0.5195]
[1738200521047,3.86161684,3150.7,3150.1,0.63491]
[1738200521048,1.365,3150.6,3150.1,0.63491]
[1738200521245,0.63497,3149.9,3149.8,3.2078]
[1738200522043,0.63502,3149.7,3149.3,1.15458]
[1738200522654,1.1491,3149.8,3149.4,0.63506]
[1738200522852,0.5141,3149.8,3149.3,0.5195]
[1738200523159,0.5141,3149.8,3149.0,0.5191]
[1738200523452,0.63512,3149.2,3148.9,3.21256387]
[1738200523658,0.63513,3149.1,3148.9,3.21256387]
[1738200524160,0.63515,3149.0,3148.9,3.21256387]
[1738200524356,13.4047,3149.5,3148.9,3.21256387]
[1738200524549,0.63512,3149.2,3148.9,3.21256387]
[1738200525355,13.4047,3149.5,3148.9,3.21256387]
[1738200525659,0.63512,3149.2,3148.9,3.21256387]
[1738200526656,13.4047,3149.5,3148.9,3.21256387]
[1738200526657,0.63515,3149.0,3148.9,3.21256387]
[1738200526863,0.63515,3149.0,3148.9,0.00476387]
[1738200534461,2.00007,3149.4,3148.9,0.00476387]
[1738200534665,0.63515,3149.0,3148.9,0.00476387]
[1738200534858,0.5162,3149.3,3148.9,0.00476387]
[1738200535059,0.63514,3149.1,3148.9,0.00476387]
[1738200535762,0.63515,3149.0,3148.9,0.00476387]
[1738200535965,0.5162,3149.3,3148.9,0.00476387]
[1738200536260,0.63513,3149.1,3148.9,0.00476387]
[1738200536466,0.63515,3149.0,3148.9,0.00476387]
[1738200540169,13.53515,3149.0,3148.9,0.00476387]
[1738200540664,1.588,3148.8,3147.8,1.0606]
[1738200540869,0.63531,3148.2,3147.8,1.69598]
[1738200541166,0.63531,3148.2,3147.9,0.63537]
[1738200541566,0.6353,3148.3,3147.9,0.63537]
[1738200542167,0.00476387,3148.4,3147.8,1.0606]
[1738200542369,0.64004387,3148.4,3148.0,0.63534]
[1738200542766,0.64004387,3148.4,3148.1,0.516]
[1738200543963,0.64004387,3148.4,3148.1,1.15132]
[1738200543964,0.00476387,3148.4,3148.1,1.15132]
[1738200544166,0.00476387,3148.4,3148.3,0.63529]
[1738200544569,0.63516,3149.0,3148.7,0.63521]
[1738200544865,3.2078,3149.1,3148.8,0.5417]
[1738200545062,3.2078,3149.1,3148.9,0.5183]
[1738200545265,3.84294,3149.1,3148.9,0.5183]
[1738200545975,0.00476387,3149.3,3149.0,3.84294]
[1738200546271,0.63985387,3149.3,3149.0,3.2078]
[1738200548869,0.63986387,3149.3,3149.0,3.2078]
[1738200549774,0.00476387,3149.3,3149.0,3.2078]
[1738200549977,0.63985387,3149.3,3149.0,3.2078]
[1738200550166,0.00476387,3149.3,3149.0,3.2078]
[1738200550477,0.63985387,3149.3,3149.0,3.2078]
[1738200550680,0.00476387,3149.3,3149.2,0.63511]
[1738200551574,0.00476387,3149.3,3149.1,0.63512]
[1738200552778,0.00476387,3149.3,3149.0,3.2078]
[1738200553077,0.00476387,3149.3,3149.1,0.63512]
[1738200555374,0.63513,3149.1,3149.0,3.2078]
[1738200555578,0.00476387,3149.3,3149.2,0.63511]
[1738200555776,0.00476387,3149.3,3149.0,3.2078]
[1738200556174,0.00476387,3149.3,3149.1,0.63512]
[1738200556371,0.00476387,3149.3,3149.0,3.84293]
[1738200556565,0.63986387,3149.3,3149.0,3.2078]
[1738200556879,0.63513,3149.1,3149.0,3.2078]
[1738200558680,0.00476387,3149.3,3148.9,0.5183]
[1738200559070,0.63515,3149.0,3148.9,0.5183]
[1738200559472,0.63517,3148.9,3148.8,0.5417]
[1738200559671,0.63525,3148.5,3148.3,0.63528]
[1738200560069,0.63525,3148.5,3148.2,1.0713]
[1738200560279,0.63525,3148.5,3148.2,1.7066]
[1738200560481,0.63525,3148.5,3148.2,1.1608]
[1738200560973,0.63526,3148.5,3148.2,1.1608]
[1738200561174,0.63524,3148.6,3148.3,0.63528]
[1738200561779,0.63527,3148.4,3148.2,3.7333]
[1738200562176,0.63529,3148.3,3148.2,0.5255]
[1738200562675,1.58808,3148.7,3148.1,0.5196]
[1738200562885,0.63531,3148.2,3148.1,0.5196]
[1738200564186,0.63531,3148.2,3147.8,3.7402]
[1738200564187,0.63537,3147.9,3147.8,3.2078]
[1738200566495,0.5089,3148.1,3147.8,3.2078]
[1738200566792,0.63537,3147.9,3147.8,3.2078]
[1738200567488,0.63539,3147.8,3147.7,0.00476387]
[1738200568596,0.63539,3147.9,3147.7,0.00476387]
[1738200568793,0.63539,3147.8,3147.7,0.00476387]
[1738200569796,0.5073,3148.0,3147.7,0.00476387]
[1738200570095,0.63539,3147.8,3147.7,0.00476387]
[1738200576496,3.44760684,3147.8,3147.7,0.00476387]
[1738200584505,3.2078,3148.5,3147.7,0.00476387]
[1738200584703,3.7304,3149.0,3148.1,2.81221684]
[1738200584902,1.361,3148.9,3148.2,0.5137]
[1738200585106,0.63522,3148.7,3148.3,1.021]
[1738200585408,0.63527,3148.4,3148.3,1.021]
[1738200585613,0.63535,3148.0,3147.9,3.2078]
[1738200585915,0.63537,3147.9,3147.8,0.5088]
[1738200586300,0.63536,3148.0,3147.8,0.5088]
[1738200586510,2.81221684,3148.2,3147.8,0.5088]
[1738200586808,0.63537,3147.9,3147.8,0.5088]
[1738200587307,2.81221684,3147.9,3147.0,3.2078]
[1738200587607,0.63551,3147.2,3147.1,0.5178]
[1738200588000,0.63551,3147.2,3146.7,1.0481]
[1738200588001,2.81221684,3147.2,3146.7,0.5248]
[1738200588309,0.63559,3146.8,3146.7,0.5248]
[1738200588510,14.89659,3146.8,3146.7,0.5248]
[1738200589105,1.99659,3146.8,3146.7,0.5248]
[1738200590610,0.63561,3146.7,3146.6,0.00476387]
[1738200590803,12.9,3147.1,3146.6,0.00476387]
[1738200590804,3.2078,3146.9,3146.6,0.00476387]
[1738200591004,2.53496387,3147.3,3146.7,0.63561]
[1738200591199,1.17396387,3147.3,3146.7,0.63561]
[1738200591404,1.361,3147.2,3146.7,0.63561]
[1738200591912,1.361,3147.2,3146.6,6.02478071]
[1738200591913,0.00476387,3147.3,3146.6,6.02478071]
[1738200592107,1.361,3147.2,3146.9,0.63557]
[1738200592414,1.361,3147.2,3147.0,1.0729]
[1738200593115,0.00476387,3147.3,3147.0,1.0729]
[1738200593413,0.00476387,3147.3,3147.2,0.63551]
[1738200596315,0.63551,3147.2,3147.1,0.5005]
[1738200596511,0.64026387,3147.3,3147.1,0.5005]
[1738200596716,0.63551,3147.2,3147.1,0.5005]
[1738200597813,0.63553,3147.1,3147.0,3.7291]
[1738200598224,0.63553,3147.1,3147.0,3.2078]
[1738200598518,0.5387,3147.2,3146.7,0.5464]
[1738200598716,0.5387,3147.2,3146.6,0.00476387]
[1738200598717,0.63561,3146.7,3146.6,0.00476387]
[1738200599708,0.63577,3146.0,3145.7,1.0472]
[1738200599923,0.63575,3146.1,3145.7,1.0472]
[1738200600122,0.63576,3146.0,3145.7,1.0472]
[1738200600512,0.63578,3145.9,3145.7,1.0472]
[1738200600711,0.63576,3146.0,3145.7,1.0472]
[1738200600917,16.1078,3146.4,3145.7,3.85941684]
[1738200601119,13.53569,3146.4,3145.8,3.84358]
[1738200601717,12.9,3146.4,3145.8,3.2078]
[1738200601922,12.9,3146.4,3145.7,3.85941684]
[1738200601923,0.63566,3146.5,3146.2,3.2078]
[1738200602117,4.5678,3147.2,3146.3,3.32351684]
[1738200602317,0.63558,3146.9,3146.4,0.5261]
[1738200602523,4.5678,3147.2,3146.4,0.5261]
[1738200602725,1.36,3147.2,3146.6,6.02001684]
[1738200603027,0.00476387,3147.3,3146.9,2.81221684]
[1738200603229,0.00476387,3147.3,3147.1,3.84332]
[1738200603424,0.00476387,3147.3,3147.2,0.5261]
[1738200603624,3.2078,3148.0,3147.2,3.33831684]
[1738200604021,0.63538,3147.9,3147.4,0.63547]
[1738200604516,0.63545,3147.6,3147.2,0.5261]
[1738200604722,0.63543,3147.7,3147.2,1.16161]
[1738200604918,0.63543,3147.6,3147.2,0.5261]
[1738200605129,0.63545,3147.6,3147.2,0.5261]
[1738200605425,0.00476387,3147.7,3147.2,0.5261]
[1738200605621,0.64018387,3147.7,3147.2,1.16161]
[1738200606024,0.00476387,3147.7,3147.2,0.5261]
[1738200606216,0.63549,3147.3,3147.2,0.5261]
[1738200606818,0.63551,3147.2,3147.1,3.71426387]
[1738200607021,0.63551,3147.2,3147.1,3.21256387]
[1738200607417,13.53551,3147.2,3147.1,3.21256387]
[1738200607822,13.53551,3147.2,3147.1,0.00476387]
[1738200610032,0.63551,3147.2,3147.1,0.00476387]
[1738200612233,1.359,3147.4,3147.1,0.00476387]
[1738200612527,0.6355,3147.3,3147.1,0.00476387]
[1738200612728,1.359,3147.4,3147.1,0.00476387]
[1738200612925,13.41706387,3147.7,3147.1,0.00476387]
[1738200613121,0.63547,3147.5,3147.1,0.00476387]
[1738200613427,0.63548,3147.4,3147.1,0.00476387]
[1738200613747,14.26376387,3147.7,3147.1,0.00476387]
[1738200613940,0.6355,3147.3,3147.1,0.00476387]
[1738200614235,14.26376387,3147.7,3147.1,0.00476387]
[1738200614533,0.63549,3147.3,3147.1,0.00476387]
[1738200616237,0.63551,3147.2,3147.1,0.00476387]
[1738200618341,3.84331,3147.2,3147.1,0.00476387]
[1738200618643,0.63563,3146.6,3146.5,3.2078]
[1738200620037,0.63563,3146.6,3146.2,0.52076387]
[1738200620238,12.9,3146.9,3146.2,0.52076387]
[1738200620437,0.63568,3146.4,3146.2,0.52076387]
[1738200620837,0.63566,3146.5,3146.2,0.52076387]
[1738200621036,0.63556,3147.0,3146.6,0.63562]
[1738200621338,1.359,3147.4,3146.6,3.84342]
[1738200621535,1.359,3147.4,3146.6,3.2078]
[1738200621742,0.63556,3147.0,3146.7,0.63561]
[1738200621939,0.63554,3147.1,3146.8,1.16868]
[1738200622234,0.63556,3147.0,3146.8,0.5331]
[1738200622439,0.63549,3147.3,3146.8,0.5331]
[1738200622634,0.63557,3147.0,3146.8,0.5331]
[1738200622838,1.359,3147.4,3146.8,0.5331]
[1738200623238,0.63556,3147.0,3146.8,0.5331]
[1738200623543,1.359,3147.4,3146.8,0.5331]
[1738200623738,0.63554,3147.1,3146.8,0.5331]
[1738200624043,0.63556,3147.0,3146.8,0.5331]
[1738200624540,0.63554,3147.1,3146.8,0.5331]
[1738200625343,1.359,3147.4,3146.8,0.5331]
[1738200625643,0.63554,3147.1,3146.8,0.5331]
[1738200625843,0.5143,3147.5,3146.9,2.81764437]
[1738200626037,0.5143,3147.5,3147.0,3.2078]
[1738200626238,0.63547,3147.4,3147.0,3.2078]
[1738200626647,0.63549,3147.3,3147.0,3.2078]
[1738200627140,0.63551,3147.2,3147.0,3.2078]
[1738200627445,0.63551,3147.2,3146.9,2.81764437]
[1738200628233,0.5143,3147.5,3146.6,7.07944437]
[1738200628438,0.6356,3146.8,3146.6,4.2618]
[1738200628946,0.63561,3146.7,3146.6,4.2618]
[1738200630036,0.63559,3146.9,3146.6,7.07944437]
[1738200630239,0.5143,3147.5,3146.6,7.07944437]
[1738200630441,0.63561,3146.7,3146.6,7.07944437]
[1738200631249,1.58869,3147.4,3146.6,7.07944437]
[1738200631544,0.5143,3147.5,3146.6,7.07944437]
[1738200631750,0.63554,3147.1,3146.9,3.45321437]
[1738200631950,0.63554,3147.1,3147.0,0.541]
[1738200632351,0.5143,3147.5,3147.0,0.541]
[1738200632544,0.63553,3147.2,3147.0,0.541]
[1738200632747,0.63553,3147.2,3147.0,3.7488]
[1738200633252,0.63553,3147.1,3147.0,3.7488]
[1738200634249,0.63561,3146.7,3146.6,0.5076]
[1738200634449,3.2078,3147.1,3146.2,1.03456387]
[1738200634652,0.63569,3146.3,3146.2,1.03456387]
[1738200634849,1.0448,3147.0,3146.3,0.63568]
[1738200635152,1.5887,3147.4,3146.6,2.81764437]
[1738200635153,1.368,3147.3,3146.6,2.81764437]
[1738200635352,0.5471,3147.0,3146.5,3.2078]
[1738200635556,0.63562,3146.7,3146.5,3.2078]
[1738200635752,0.6356,3146.8,3146.5,3.2078]
[1738200636654,0.63558,3146.9,3146.5,3.84344]
[1738200636855,0.6356,3146.8,3146.5,3.2078]
[1738200637952,0.6356,3146.8,3146.4,0.63567]
[1738200638450,0.6356,3146.8,3146.5,3.2078]
[1738200638651,0.5471,3147.0,3146.5,3.2078]
[1738200638849,1.18266,3147.0,3146.6,3.45327437]
[1738200639045,2.00351,3147.3,3146.9,3.45321437]
[1738200639247,0.63552,3147.2,3147.0,1.0396]
[1738200639452,0.63558,3146.9,3146.5,3.84344]
[1738200639854,0.63561,3146.7,3146.5,3.2078]
[1738200640952,0.63563,3146.6,3146.5,3.2078]
[1738200641151,0.63562,3146.7,3146.5,3.2078]
[1738200641750,0.5034,3146.8,3146.5,3.2078]
[1738200641956,0.63563,3146.7,3146.5,3.2078]
[1738200642256,0.63563,3146.6,3146.5,3.2078]
[1738200643856,0.63562,3146.7,3146.5,3.2078]
[1738200644560,1.139,3146.8,3146.5,3.2078]
[1738200645560,0.5221,3147.4,3146.6,2.81764437]
[1738200645761,0.63555,3147.1,3146.7,1.1672]
[1738200647061,2.4235,3147.4,3146.7,0.5316]
[1738200647256,0.5424,3147.4,3146.9,6.02544437]
[1738200647463,0.63544,3147.6,3147.2,2.81764437]
[1738200647758,0.00476387,3147.7,3147.0,0.5471]
[1738200647759,0.00476387,3147.7,3147.5,2.81764437]
[1738200648056,0.5424,3148.7,3147.6,0.5471]
[1738200648262,3.36004437,3148.7,3147.9,3.2078]
[1738200648463,0.63535,3148.0,3147.6,4.00016437]
[1738200648664,0.63534,3148.1,3147.7,0.63541]
[1738200649265,0.63537,3148.0,3147.6,4.00491824]
[1738200649457,0.63537,3148.0,3147.7,0.63541]
[1738200650161,0.63537,3147.9,3147.7,0.63541]
[1738200650360,0.63541,3147.7,3147.6,0.55186387]
[1738200651459,0.63541,3147.7,3147.6,0.00476387]
[1738200651958,0.63541,3147.7,3146.6,0.5226]
[1738200651959,0.63561,3146.7,3146.6,3.2078]
[1738200652159,0.63579,3145.9,3145.7,2.81764437]
[1738200652356,1.359,3146.7,3145.6,3.2078]
[1738200652357,0.63582,3145.7,3145.6,3.2078]
[1738200652553,0.63588,3145.4,3145.3,4.87186881]
[1738200652756,0.63588,3145.4,3145.3,4.04246881]
[1738200652955,0.63588,3145.4,3145.0,0.00476387]
[1738200652956,0.63594,3145.1,3145.0,0.00476387]
[1738200653557,0.63596,3145.0,3144.9,2.38823268]
[1738200653758,9.11776,3145.0,3144.9,0.78165454]
[1738200653956,5.274,3144.9,3144.6,9.74373763]
[1738200654265,5.91006,3144.5,3144.4,7.55813652]
[1738200654562,5.9102,3143.8,3142.8,24.359344]
[1738200654867,12.54259242,3143.8,3142.8,24.359344]
[1738200655065,17.54259242,3143.8,3143.4,0.00476387]
[1738200655267,9.118,3143.8,3143.4,0.00476387]
[1738200655470,3.844,3143.8,3143.4,0.00476387]
[1738200655671,3.2078,3143.8,3143.4,0.00476387]
[1738200655863,16.1078,3143.8,3143.4,0.00476387]
[1738200656171,1.4,3143.9,3143.4,0.64102387]
[1738200657173,1.4,3143.9,3143.8,0.0028637]
[1738200657468,0.00476387,3144.1,3143.8,0.0028637]
[1738200657661,0.00476387,3144.1,3143.8,0.5557637]
[1738200658776,0.00476387,3144.1,3143.8,1.1919537]
[1738200659364,0.00476387,3144.1,3143.8,0.5557637]
[1738200659772,0.00476387,3144.1,3143.8,1.1919637]
[1738200659969,0.00476387,3144.1,3143.8,0.5557637]
[1738200660367,0.00476387,3144.1,3143.8,3.7635637]
[1738200660568,0.00476387,3144.1,3144.0,0.63616]
[1738200661271,0.00476387,3144.1,3143.9,3.42459242]
[1738200661473,0.00476387,3144.1,3143.8,4.3997637]
[1738200661474,0.00476387,3144.1,3143.8,3.7635637]
[1738200662075,0.00476387,3144.1,3143.8,0.5557637]
[1738200662577,0.00476387,3144.1,3144.0,0.63616]
[1738200664971,3.2078,3145.1,3144.0,5.0]
[1738200665175,3.2078,3145.1,3144.6,3.42459242]
[1738200665568,3.2078,3145.1,3144.5,3.2078]
[1738200665876,0.63598,3144.9,3144.1,1.18504]
[1738200667078,0.00476387,3145.0,3144.1,1.18504]
[1738200667279,0.00476387,3145.0,3144.1,0.5489]